bitfinex-derivatives/quotes_ETHF0:USTF0_20250213
["timestamp","ask_amount","ask_price","bid_price","bid_amount"]
[1739468968614,3.2078,2646.9,2646.8,0.75551]
[1739468969016,3.2078,2646.9,2646.6,40.8]
[1739468969315,0.75558,2646.6,2646.4,3.69162]
[1739468969513,1.3162,2646.5,2646.4,2.936]
[1739468970215,0.5606,2646.5,2646.4,2.936]
[1739468970515,0.75568,2646.3,2646.0,0.75574]
[1739468970711,3.2078,2646.2,2646.0,0.75574]
[1739468970914,3.2078,2646.2,2646.0,0.75573]
[1739468971110,3.2078,2646.2,2645.8,3.95167656]
[1739468971308,4.52402,2646.5,2646.3,0.75565]
[1739468971618,3.7684,2646.5,2646.2,0.75567]
[1739468971917,0.75563,2646.4,2646.2,0.75567]
[1739468972106,4.52402,2646.5,2646.1,3.37017656]
[1739468972305,0.75564,2646.4,2646.2,0.75567]
[1739468972716,3.7684,2646.5,2646.1,3.37017656]
[1739468973018,3.2078,2646.5,2646.4,0.75563]
[1739468973318,3.2078,2646.5,2646.2,1.1281]
[1739468973515,3.96341,2646.5,2646.2,1.1281]
[1739468973710,0.75563,2646.4,2646.3,0.5932]
[1739468974420,3.2078,2646.5,2646.3,0.5932]
[1739468974618,3.2078,2646.5,2646.4,0.75563]
[1739468974820,3.72215096,2646.5,2646.3,0.5932]
[1739468975113,0.51435096,2646.5,2646.4,4.12580656]
[1739468975317,3.72215096,2646.8,2646.4,3.37017656]
[1739468975519,3.2078,2646.5,2646.4,4.12579656]
[1739468977323,3.9634,2646.5,2646.4,4.12579656]
[1739468977621,3.2078,2646.5,2646.4,3.37017656]
[1739468977823,3.2078,2646.5,2646.4,4.12580656]
[1739468979017,3.2078,2646.8,2646.4,3.37017656]
[1739468979323,3.2078,2646.8,2646.7,4.12571656]
[1739468979723,3.96332,2646.8,2646.7,3.37017656]
[1739468979915,3.96332,2646.8,2646.7,4.12571656]
[1739468980121,3.2078,2646.8,2646.7,4.12571656]
[1739468980315,3.2078,2646.8,2646.7,3.37017656]
[1739468980523,3.96332,2646.8,2646.7,4.12571656]
[1739468980820,3.2078,2646.8,2646.4,3.37017656]
[1739468981018,0.75557,2646.7,2646.5,0.75559]
[1739468981221,0.567,2646.7,2646.6,0.75557]
[1739468981519,3.2078,2646.8,2646.4,3.37017656]
[1739468981721,3.96332,2646.8,2646.6,0.75555]
[1739468981919,3.2078,2646.8,2646.7,0.75554]
[1739468982320,0.75556,2646.7,2646.5,0.75558]
[1739468982517,3.2078,2646.8,2646.4,3.37017656]
[1739468982717,3.2078,2646.8,2646.4,5.25924656]
[1739468982916,3.2078,2646.8,2646.4,3.37017656]
[1739468983118,3.2078,2646.8,2646.7,0.75554]
[1739468983412,3.2078,2646.8,2646.4,5.25924656]
[1739468983617,3.2078,2646.8,2646.6,0.75556]
[1739468983820,3.96333,2646.8,2646.6,0.75556]
[1739468984224,3.2078,2646.8,2646.4,3.37017656]
[1739468984418,3.96333,2646.8,2646.6,0.75556]
[1739468984625,0.75554,2646.7,2646.6,0.75556]
[1739468984923,3.96334,2646.8,2646.6,0.75556]
[1739468985314,3.96334,2646.8,2646.4,3.37017656]
[1739468985518,3.2078,2646.8,2646.4,3.37017656]
[1739468985825,3.2078,2646.8,2646.7,0.75554]
[1739468986225,1.08172097,2647.0,2646.9,0.75549]
[1739468986625,0.567,2647.0,2646.9,0.75549]
[1739468986839,0.51472097,2647.1,2647.0,0.75546]
[1739468987726,3.2078,2647.2,2647.1,0.75543]
[1739468988541,3.72252097,2647.2,2647.1,0.75543]
[1739468990026,3.72252097,2647.2,2647.0,3.37017656]
[1739468990232,0.75543,2647.1,2647.0,4.12562656]
[1739468990434,5.04703097,2647.2,2647.0,4.12560656]
[1739468990832,0.51472097,2647.1,2647.0,4.12560656]
[1739468991033,0.51472097,2647.1,2647.0,3.37017656]
[1739468991236,1.27015097,2647.1,2647.0,3.37017656]
[1739468991431,0.51472097,2647.1,2647.0,4.12563656]
[1739468991837,0.51472097,2647.1,2647.0,3.37017656]
[1739468992139,3.7769,2647.2,2646.8,1.1494]
[1739468992333,0.75545,2647.1,2646.9,0.75547]
[1739468992836,3.2078,2647.2,2646.8,1.90491]
[1739468993040,3.2078,2647.2,2646.9,0.75548]
[1739468993341,3.2078,2647.2,2646.7,3.37017656]
[1739468993342,0.75552,2646.8,2646.7,3.37017656]
[1739468993536,1.88859,2647.1,2646.7,3.37017656]
[1739468993537,3.2078,2646.9,2646.7,4.12571656]
[1739468993732,3.2078,2646.9,2646.8,0.75552]
[1739468995029,3.72256912,2647.2,2646.8,0.75552]
[1739468995340,3.2078,2647.2,2647.1,0.75543]
[1739468995733,3.2078,2647.2,2647.1,0.5484]
[1739468995938,3.9632,2647.2,2647.1,0.5484]
[1739468996135,3.96322,2647.2,2647.0,4.12561656]
[1739468996334,3.96322,2647.2,2647.1,0.75543]
[1739468996535,3.96322,2647.2,2647.0,4.12561656]
[1739468996735,4.47798912,2647.2,2647.0,4.12561656]
[1739468996938,3.72256912,2647.2,2646.8,0.5484]
[1739468997236,1.63026912,2647.1,2646.8,0.5484]
[1739468997538,1.07016912,2647.1,2647.0,0.75546]
[1739468997740,1.07016912,2647.1,2646.9,0.75547]
[1739468998037,0.75546,2647.0,2646.9,0.75547]
[1739468998240,1.31085,2647.1,2646.8,1.1153]
[1739468998536,0.5554,2647.1,2647.0,0.75546]
[1739468998740,1.31084,2647.1,2646.9,0.75547]
[1739468999133,3.72256912,2647.2,2647.0,3.37017656]
[1739468999335,3.72256912,2647.2,2647.1,0.75543]
[1739468999541,4.47798912,2647.2,2647.0,3.37017656]
[1739468999739,4.47798912,2647.2,2647.0,4.12561656]
[1739469000037,3.72256912,2647.2,2647.1,0.75543]
[1739469000241,3.9632,2647.2,2647.0,4.12561656]
[1739469000439,3.2078,2647.2,2647.1,0.75543]
[1739469000630,3.9632,2647.2,2647.0,3.37017656]
[1739469000833,3.2078,2647.2,2647.0,3.37017656]
[1739469001043,3.2078,2647.2,2647.1,0.75543]
[1739469001242,0.5899,2647.3,2647.2,0.7554]
[1739469001550,3.96312,2647.5,2647.3,0.75535]
[1739469001738,0.51458762,2647.4,2647.3,0.75535]
[1739469002344,3.72238762,2647.5,2647.4,0.75534]
[1739469003145,0.51458762,2647.5,2647.4,0.75534]
[1739469003846,0.5899,2647.6,2647.3,4.2227473]
[1739469003847,0.5899,2647.6,2647.5,0.75532]
[1739469004937,0.51458762,2647.7,2647.3,3.91787656]
[1739469005139,0.51458762,2647.7,2647.6,0.75529]
[1739469005843,0.75534,2647.4,2647.3,3.91787656]
[1739469006239,0.75534,2647.4,2647.3,0.5477]
[1739469006548,0.7554,2647.2,2647.1,0.0056638]
[1739469006842,3.9632,2647.2,2647.1,0.0056638]
[1739469007048,3.2735082,2647.2,2646.5,3.2078]
[1739469007251,3.2078,2646.9,2646.4,3.95587656]
[1739469007543,3.2078,2646.9,2646.0,0.5602]
[1739469007544,0.7556,2646.5,2646.1,3.37017656]
[1739469007745,0.5536,2646.4,2646.2,0.75568]
[1739469007949,0.5536,2646.4,2646.3,0.75566]
[1739469008149,0.5536,2646.4,2646.1,3.37017656]
[1739469008353,0.5536,2646.4,2646.1,3.37584036]
[1739469008548,0.5536,2646.4,2646.2,0.75566]
[1739469008745,0.5536,2646.4,2646.2,0.75569]
[1739469009052,3.2078,2646.3,2646.1,0.0056638]
[1739469010154,0.75569,2646.2,2646.1,0.0056638]
[1739469010351,1.30589,2646.2,2646.1,0.0056638]
[1739469010846,1.30589,2646.2,2644.7,1.89029]
[1739469010847,0.75584,2645.7,2645.2,4.67822656]
[1739469011047,3.7996,2645.6,2645.2,4.67822656]
[1739469011258,5.5236,2645.6,2644.9,44.17017656]
[1739469011449,3.2078,2645.3,2644.9,0.75605]
[1739469011756,3.2078,2645.3,2644.6,3.37017656]
[1739469011951,3.2078,2645.3,2644.9,0.75603]
[1739469012251,3.2078,2645.3,2644.9,3.37017656]
[1739469012949,3.2078,2645.3,2645.0,0.75601]
[1739469013148,3.2078,2645.3,2644.9,3.37017656]
[1739469013751,3.96383,2645.0,2644.8,0.0056638]
[1739469014146,3.2078,2645.0,2644.8,0.0056638]
[1739469014656,3.96384,2645.0,2644.8,0.0056638]
[1739469015449,3.2078,2645.0,2644.8,0.0056638]
[1739469015654,3.2078,2645.0,2644.8,0.7617338]
[1739469015854,3.2078,2645.0,2644.8,0.0056638]
[1739469016052,0.75606,2644.9,2644.8,0.0056638]
[1739469016555,1.38413,2644.9,2644.8,0.0056638]
[1739469016950,1.31836,2644.9,2644.8,0.0056638]
[1739469018449,0.5623,2644.9,2644.8,0.0056638]
[1739469018756,3.2078,2645.0,2644.8,0.0056638]
[1739469019658,0.75606,2644.9,2644.8,0.0056638]
[1739469020458,0.8218273,2644.9,2644.8,0.0056638]
[1739469021551,0.0657673,2644.9,2644.8,0.0056638]
[1739469021747,3.96384,2645.0,2644.8,0.0056638]
[1739469022659,3.2078,2645.0,2644.8,0.7617338]
[1739469022858,0.5856,2645.3,2644.9,0.75606]
[1739469022859,3.7934,2645.3,2644.9,0.75606]
[1739469023057,0.06576203,2645.2,2644.8,0.0056638]
[1739469023247,0.75606,2644.9,2644.8,0.0056638]
[1739469023655,3.96385,2645.0,2644.8,0.0056638]
[1739469023855,3.2078,2645.0,2644.9,0.75606]
[1739469024158,4.54936,2645.3,2644.9,3.37017656]
[1739469024460,4.54936,2645.3,2645.0,0.75602]
[1739469024660,3.7934,2645.3,2644.9,3.91967656]
[1739469024959,3.7934,2645.3,2645.0,0.75601]
[1739469025161,0.75598,2645.2,2645.0,0.75601]
[1739469025461,3.7934,2645.3,2644.9,3.91967656]
[1739469025962,3.7934,2645.3,2645.2,0.75597]
[1739469026459,3.85915832,2645.3,2644.9,4.67572656]
[1739469026654,3.85915832,2645.3,2645.0,0.75601]
[1739469026655,0.75598,2645.2,2645.0,0.75601]
[1739469026859,3.7934,2645.3,2644.9,3.91967656]
[1739469027161,0.75606,2644.9,2644.8,0.0056638]
[1739469028061,0.82182838,2644.9,2644.8,0.0056638]
[1739469028264,0.75606,2644.9,2644.8,0.0056638]
[1739469029461,3.2078,2645.0,2644.8,0.0056638]
[1739469029659,3.2078,2645.0,2644.9,0.75606]
[1739469029857,3.2078,2645.0,2644.8,0.0056638]
[1739469030050,3.2078,2645.0,2644.9,0.75606]
[1739469030561,3.2078,2645.0,2644.8,0.0056638]
[1739469030760,3.2078,2645.0,2644.8,0.7617238]
[1739469030957,3.2078,2645.0,2644.9,0.75606]
[1739469031162,3.7934,2645.3,2644.9,4.12623656]
[1739469031459,3.2078,2645.3,2645.2,0.75597]
[1739469031960,3.96375,2645.3,2645.1,0.75598]
[1739469032162,3.96376,2645.3,2645.1,0.756]
[1739469032665,3.2078,2645.3,2645.2,0.75597]
[1739469032864,3.2078,2645.3,2645.2,4.12614656]
[1739469033163,0.0056638,2645.4,2645.3,0.75594]
[1739469036756,0.7615838,2645.4,2645.2,4.12611656]
[1739469037063,0.75594,2645.3,2645.2,3.37017656]
[1739469037260,0.0056638,2645.4,2645.2,3.37017656]
[1739469037458,0.0056638,2645.4,2645.3,0.75594]
[1739469037757,0.7615738,2645.4,2645.3,0.75594]
[1739469037961,0.7615738,2645.4,2645.2,4.12612656]
[1739469038162,0.0056638,2645.4,2645.3,0.75594]
[1739469038761,0.0056638,2645.4,2645.2,3.37017656]
[1739469038961,0.0056638,2645.4,2645.3,0.75594]
[1739469039362,0.0056638,2645.4,2645.2,3.37017656]
[1739469039561,0.75594,2645.3,2645.2,3.37017656]
[1739469039765,0.75594,2645.3,2645.1,0.75599]
[1739469040753,0.0056638,2645.4,2645.0,1.1357]
[1739469040957,0.0056638,2645.4,2645.3,0.75594]
[1739469046963,0.7615738,2645.4,2645.3,0.75594]
[1739469047162,0.75594,2645.3,2645.2,3.37017656]
[1739469047671,0.75594,2645.3,2645.2,4.12612656]
[1739469047871,0.0056638,2645.4,2645.3,0.75594]
[1739469054973,0.0056638,2645.4,2645.3,2.47994]
[1739469061377,0.0056638,2645.4,2645.3,0.75594]
[1739469061579,0.7615738,2645.4,2645.3,0.75594]
[1739469061779,0.0056638,2645.4,2645.3,0.75594]
[1739469062087,1.3403738,2645.4,2645.3,0.75594]
[1739469062279,1.9237738,2645.4,2645.3,0.75594]
[1739469062482,1.1678638,2645.4,2645.3,0.75594]
[1739469062678,0.0056638,2645.4,2645.3,0.75594]
[1739469064979,3.8e-06,2645.4,2645.3,0.75594]
[1739469065181,0.5474,2645.9,2645.8,0.7558]
[1739469065387,0.51574653,2646.1,2646.0,0.75574]
[1739469065888,3.2078,2646.2,2646.1,0.75571]
[1739469066584,1.33787,2646.3,2646.2,0.75569]
[1739469067086,0.75573,2646.1,2646.0,0.75571]
[1739469067287,0.5504,2646.2,2645.8,3.37017656]
[1739469067488,3.7582,2646.2,2645.8,3.37017656]
[1739469067694,4.5139,2646.2,2646.1,0.75571]
[1739469067996,3.7582,2646.2,2646.1,0.75571]
[1739469069195,0.0056638,2646.4,2646.3,0.75566]
[1739469069785,0.0056638,2646.4,2646.3,2.47966]
[1739469074192,0.7613138,2646.4,2646.2,0.75567]
[1739469074491,0.7613138,2646.4,2646.1,3.37017656]
[1739469074492,0.0056638,2646.4,2646.1,3.37017656]
[1739469074690,3.2078,2646.3,2646.0,1.723]
[1739469074899,0.75573,2646.1,2645.8,3.37017656]
[1739469075287,1.8871,2646.2,2646.0,0.75574]
[1739469075592,1.1314,2646.2,2645.8,3.37017656]
[1739469075902,0.75572,2646.1,2645.9,0.75575]
[1739469076099,0.75581,2645.8,2645.6,0.75585]
[1739469076391,0.5666,2645.7,2645.6,0.75586]
[1739469076592,1.32243,2645.7,2645.5,4.12603656]
[1739469076790,1.32244,2645.7,2645.5,4.12604656]
[1739469076992,3.7744,2645.7,2645.3,3.2078]
[1739469077195,0.75586,2645.6,2645.4,0.7559]
[1739469077392,0.75589,2645.5,2645.3,3.96372]
[1739469077796,0.51441902,2645.6,2645.3,3.2078]
[1739469077992,0.51441902,2645.6,2645.4,0.7559]
[1739469078197,0.51441902,2645.6,2645.5,0.75589]
[1739469078398,3.7744,2645.7,2645.5,0.75589]
[1739469078603,4.53023,2645.7,2645.5,0.75589]
[1739469078796,4.28881902,2645.7,2645.5,0.75589]
[1739469078997,4.28881902,2645.7,2645.6,0.75586]
[1739469079194,5.04465902,2645.7,2645.5,4.12605656]
[1739469079500,4.28881902,2645.7,2645.3,3.2078]
[1739469079700,1.27028902,2645.6,2645.3,3.96373]
[1739469079900,0.51441902,2645.6,2645.4,0.7559]
[1739469080095,1.27027902,2645.6,2645.4,0.7559]
[1739469080299,0.51441902,2645.6,2645.2,3.37017656]
[1739469080497,0.75594,2645.3,2645.2,3.37017656]
[1739469080695,3.2078,2645.3,2644.9,4.12621656]
[1739469080901,0.75603,2645.0,2644.9,3.37017656]
[1739469081401,1.31012,2645.1,2644.9,3.37017656]
[1739469082001,0.5541,2645.1,2645.0,0.75603]
[1739469083306,0.51441902,2645.2,2645.1,0.756]
[1739469083600,3.2078,2645.3,2644.9,5.26029656]
[1739469083807,0.5541,2645.5,2645.4,0.75591]
[1739469084399,3.2078,2645.7,2645.6,0.75586]
[1739469084597,3.2078,2645.7,2645.5,3.37017656]
[1739469085002,3.96365,2645.7,2645.5,4.12604656]
[1739469085600,3.2078,2645.7,2645.5,3.37017656]
[1739469085800,3.2078,2645.7,2645.3,0.75592]
[1739469085992,0.5845,2645.6,2645.2,3.37017656]
[1739469086297,0.5446,2645.8,2645.5,3.37017656]
[1739469086607,3.2078,2645.7,2645.6,0.75586]
[1739469086901,0.75586,2645.6,2645.5,3.37017656]
[1739469087102,3.2078,2645.7,2645.3,40.8]
[1739469087305,0.75592,2645.4,2645.2,3.37017656]
[1739469087603,0.75594,2645.3,2645.2,3.37017656]
[1739469087794,0.5506,2645.3,2645.2,3.37017656]
[1739469087995,0.5506,2645.3,2645.2,4.12614656]
[1739469088304,0.75599,2645.2,2645.0,0.75601]
[1739469088502,0.75602,2645.1,2644.9,4.12622656]
[1739469088806,1.1517,2645.3,2644.9,4.12622656]
[1739469088992,0.75599,2645.2,2645.0,0.75601]
[1739469089395,1.1517,2645.3,2645.0,0.75601]
[1739469089605,0.75597,2645.2,2645.1,0.75599]
[1739469089996,0.75597,2645.2,2645.0,0.75602]
[1739469091002,0.75603,2645.0,2644.9,4.12622656]
[1739469091210,3.96382,2645.1,2644.9,4.12622656]
[1739469091705,3.96382,2645.1,2645.0,0.75603]
[1739469091706,3.2078,2645.1,2645.0,0.75603]
[1739469092209,3.2078,2645.1,2644.9,3.37017656]
[1739469092409,3.96381,2645.1,2644.9,4.12621656]
[1739469092597,3.2078,2645.1,2645.0,0.75603]
[1739469093311,3.9638,2645.1,2645.0,0.75603]
[1739469093604,3.2078,2645.1,2645.0,0.75603]
[1739469094008,0.75603,2645.0,2644.9,3.37017656]
[1739469094205,3.2078,2645.1,2644.9,3.37017656]
[1739469094401,3.96382,2645.1,2644.9,4.12621656]
[1739469094712,0.75603,2645.0,2644.9,3.37017656]
[1739469094914,3.2078,2645.1,2645.0,0.75603]
[1739469095410,3.9638,2645.1,2645.0,0.75603]
[1739469096206,0.75603,2645.0,2644.9,3.37017656]
[1739469096702,3.2078,2645.1,2644.9,4.12621656]
[1739469096908,3.96381,2645.1,2645.0,0.75603]
[1739469097113,3.2078,2645.1,2645.0,0.75603]
[1739469097311,3.9638,2645.1,2645.0,0.75603]
[1739469097918,0.756,2645.1,2645.0,0.75601]
[1739469098110,0.75603,2645.0,2644.9,3.37017656]
[1739469098814,0.75603,2645.0,2644.9,4.12621656]
[1739469099016,3.2078,2645.1,2644.9,4.12621656]
[1739469099312,0.75603,2645.0,2644.9,4.12621656]
[1739469099914,3.2078,2645.1,2644.9,3.37017656]
[1739469100113,0.75603,2645.0,2644.9,3.37017656]
[1739469100309,0.75606,2644.9,2644.8,0.0056638]
[1739469101008,0.581,2645.0,2644.8,0.0056638]
[1739469101210,0.75606,2644.9,2644.8,0.0056638]
[1739469101418,3.2078,2645.1,2644.8,0.0056638]
[1739469101607,0.75604,2645.0,2644.9,0.75604]
[1739469101808,3.2078,2645.1,2644.8,0.0056638]
[1739469102010,3.96382,2645.1,2645.0,0.75603]
[1739469102305,3.2078,2645.1,2645.0,0.75603]
[1739469102707,0.75603,2645.0,2644.9,3.37017656]
[1739469102912,0.75606,2644.9,2644.8,0.0056638]
[1739469103110,0.75604,2645.0,2644.8,0.7617538]
[1739469103312,3.2078,2645.1,2644.8,0.7617538]
[1739469103517,3.2078,2645.1,2644.8,0.0056638]
[1739469103816,0.75606,2644.9,2644.8,0.7617538]
[1739469104019,3.2078,2645.1,2644.8,0.0056638]
[1739469104220,0.75603,2645.0,2644.9,0.75604]
[1739469104415,0.75606,2644.9,2644.8,0.0056638]
[1739469104616,3.96382,2645.1,2644.9,0.75604]
[1739469104919,0.75603,2645.0,2644.9,0.75604]
[1739469105416,3.2078,2645.1,2644.8,0.0056638]
[1739469105719,3.2078,2645.1,2645.0,0.75603]
[1739469105919,3.2078,2645.1,2644.9,1.1058]
[1739469106120,3.2078,2645.1,2645.0,0.75603]
[1739469107116,3.9638,2645.1,2645.0,0.75603]
[1739469107309,3.2078,2645.1,2645.0,0.75603]
[1739469107611,3.96382,2645.1,2644.9,1.1058]
[1739469107921,0.75606,2644.9,2644.8,0.0056638]
[1739469108120,0.75605,2645.0,2644.8,0.0056638]
[1739469108319,0.75605,2645.0,2644.9,0.75606]
[1739469108517,3.96382,2645.1,2644.9,0.75606]
[1739469108908,3.2078,2645.1,2644.9,0.75606]
[1739469109112,3.2078,2645.1,2644.8,0.7617438]
[1739469109318,0.75606,2644.9,2644.8,0.0056638]
[1739469109622,1.89033,2644.7,2644.1,3.2078]
[1739469109824,0.75622,2644.4,2644.2,0.75624]
[1739469110013,0.75622,2644.4,2644.3,0.75623]
[1739469110213,3.2078,2644.6,2644.1,3.2078]
[1739469110415,3.2078,2644.6,2644.5,0.75617]
[1739469111220,0.75617,2644.5,2644.4,0.5641]
[1739469111517,0.7562,2644.4,2644.3,0.0056638]
[1739469112715,3.96396,2644.6,2644.4,0.75618]
[1739469113113,3.2078,2644.6,2644.4,0.75618]
[1739469113315,3.96396,2644.6,2644.4,0.75618]
[1739469113513,3.2078,2644.6,2644.5,0.75617]
[1739469113721,3.2078,2644.6,2644.3,0.0056638]
[1739469113921,0.75618,2644.5,2644.4,0.75619]
[1739469114318,3.2078,2644.6,2644.5,0.75617]
[1739469114624,3.2078,2644.6,2644.3,3.37584036]
[1739469114625,0.5877638,2644.8,2644.3,3.37584036]
[1739469114919,0.5877638,2644.8,2644.7,0.75611]
[1739469115220,0.75611,2644.7,2644.4,0.5811]
[1739469115414,0.5877638,2644.8,2644.4,0.5811]
[1739469115615,1.3438638,2644.8,2644.4,0.5811]
[1739469115916,1.3438738,2644.8,2644.4,0.5811]
[1739469116220,0.5877638,2644.8,2644.6,0.75612]
[1739469116416,0.75614,2644.6,2644.5,1.30287]
[1739469116622,0.75614,2644.6,2644.5,0.5467]
[1739469117024,0.75614,2644.6,2644.4,0.75619]
[1739469118320,0.75617,2644.6,2644.4,0.75619]
[1739469118724,1.1493,2644.7,2644.3,3.37584036]
[1739469118927,0.75615,2644.6,2644.5,0.75616]
[1739469119118,1.1493,2644.7,2644.5,0.75616]
[1739469119318,1.1493,2644.7,2644.3,3.37584036]
[1739469119623,1.1493,2644.7,2644.6,0.75614]
[1739469119624,1.90541,2644.7,2644.6,0.75614]
[1739469119822,1.90541,2644.7,2644.5,0.75616]
[1739469120222,1.90541,2644.7,2644.3,5.26641036]
[1739469120423,0.5687,2644.7,2644.6,0.75614]
[1739469120823,0.0056638,2644.8,2644.7,0.75611]
[1739469121022,0.0056638,2644.8,2644.7,1.94531]
[1739469121224,3.98160891,2645.1,2645.0,0.75603]
[1739469121225,0.51560891,2645.1,2645.0,0.75603]
[1739469121527,0.554,2645.8,2645.7,0.75583]
[1739469121719,3.2078,2646.1,2645.5,3.37017656]
[1739469121918,0.75579,2645.9,2645.6,0.75583]
[1739469122129,3.2078,2646.1,2645.6,0.6015]
[1739469122330,0.07140269,2646.0,2645.6,0.6015]
[1739469122519,0.7614238,2646.0,2645.7,0.75581]
[1739469122722,0.0056638,2646.0,2645.6,0.6015]
[1739469122924,0.7558,2645.8,2645.6,0.6015]
[1739469123428,3.2078,2645.8,2645.6,0.6015]
[1739469123727,3.2078,2645.8,2645.6,1.35735]
[1739469124132,3.2078,2645.8,2645.7,0.75583]
[1739469124326,0.0056638,2646.0,2645.9,0.75577]
[1739469124522,0.0056638,2646.0,2645.9,3.37017656]
[1739469125435,0.0056638,2646.0,2645.9,4.12594656]
[1739469125729,3.2078,2646.5,2645.9,3.37017656]
[1739469125930,3.2078,2646.5,2645.9,3.94027656]
[1739469126139,0.75564,2646.4,2646.0,0.75573]
[1739469126331,3.96342,2646.5,2646.1,0.7557]
[1739469126631,3.2078,2646.5,2646.0,0.75573]
[1739469126822,0.75569,2646.3,2645.9,4.69603656]
[1739469127025,3.2078,2646.5,2645.9,4.12593656]
[1739469127327,0.75568,2646.3,2645.9,4.12593656]
[1739469127633,3.9635,2646.2,2645.9,4.12594656]
[1739469127840,3.2078,2646.2,2645.9,3.37017656]
[1739469128134,1.34504,2646.1,2645.9,3.37017656]
[1739469128426,1.34503,2646.1,2645.9,3.37017656]
[1739469128627,3.2078,2646.2,2646.1,0.75571]
[1739469128833,3.2078,2646.2,2645.9,3.37017656]
[1739469130134,3.2078,2646.2,2646.1,0.75571]
[1739469131228,3.2078,2646.2,2645.9,3.37017656]
[1739469131428,3.2078,2646.2,2646.1,0.75571]
[1739469132134,3.2078,2646.2,2645.9,3.37017656]
[1739469132338,3.2078,2646.2,2646.1,0.75571]
[1739469132734,3.2078,2646.2,2646.0,0.75574]
[1739469133036,3.9635,2646.2,2646.1,0.75571]
[1739469133234,3.2078,2646.2,2646.1,0.75571]
[1739469133437,3.96349,2646.2,2646.0,0.75573]
[1739469133737,3.2078,2646.2,2646.1,0.75571]
[1739469133925,3.96349,2646.2,2646.0,0.75572]
[1739469134129,0.75572,2646.1,2645.9,4.12592656]
[1739469134329,3.2078,2646.2,2645.9,3.37017656]
[1739469134531,3.2078,2646.2,2646.0,0.75573]
[1739469134730,3.96351,2646.2,2646.0,0.75573]
[1739469135132,0.75572,2646.1,2645.9,3.37017656]
[1739469135339,3.2078,2646.2,2645.9,3.37017656]
[1739469135639,3.2078,2646.2,2645.8,0.5601]
[1739469135839,1.1803,2646.1,2645.7,3.2134638]
[1739469136140,0.7558,2645.8,2645.7,3.2134638]
[1739469136334,0.7558,2645.8,2645.7,0.0056638]
[1739469136741,1.41414419,2645.8,2645.7,0.0056638]
[1739469137042,1.91506504,2645.8,2645.7,0.0056638]
[1739469137639,3.04880504,2645.8,2645.2,0.5815]
[1739469137940,3.2078,2645.5,2645.3,3.37017656]
[1739469138145,3.2078,2645.5,2645.4,0.75591]
[1739469138344,3.96369,2645.5,2645.3,4.12610656]
[1739469138537,3.96369,2645.5,2645.3,3.37017656]
[1739469138738,3.96369,2645.5,2645.3,4.12611656]
[1739469139248,0.75591,2645.4,2645.3,3.37017656]
[1739469140045,3.2078,2645.5,2645.3,3.37017656]
[1739469140241,3.2078,2645.5,2645.4,0.75591]
[1739469140641,3.96369,2645.5,2645.3,3.37017656]
[1739469140947,0.75591,2645.4,2645.3,3.37017656]
[1739469142046,3.96371,2645.5,2645.3,3.37017656]
[1739469142246,3.96371,2645.5,2645.1,1.1688638]
[1739469142247,3.2078,2645.5,2645.1,0.0056638]
[1739469142442,3.96377,2645.2,2645.1,0.0056638]
[1739469144545,4.02953276,2645.2,2645.1,0.0056638]
[1739469145046,4.02953467,2645.2,2645.1,0.0056638]
[1739469146251,4.02953062,2645.2,2645.1,0.0056638]
[1739469146544,4.02953062,2645.2,2642.7,7.73897656]
[1739469146545,3.2078,2644.8,2642.7,7.73897656]
[1739469146746,30.95793718,2645.2,2643.0,3.94457656]
[1739469146747,3.96423,2643.6,2643.0,3.94457656]
[1739469147048,3.2078,2643.6,2643.1,40.8]
[1739469147251,3.96423,2643.6,2643.1,40.8]
[1739469147544,3.96424,2643.6,2643.1,40.8]
[1739469147747,3.96424,2643.6,2643.0,4.70116656]
[1739469148144,3.2078,2643.6,2643.0,3.94457656]
[1739469148447,0.75654,2643.2,2643.1,0.00567472]
[1739469149347,1.722,2643.2,2642.4,3.37017656]
[1739469149541,3.2078,2642.8,2642.4,3.37017656]
[1739469149952,3.2078,2642.8,2642.7,3.37017656]
[1739469150248,3.7525,2643.1,2642.7,3.37017656]
[1739469150551,3.2078,2643.1,2642.7,3.37017656]
[1739469150750,3.2078,2643.1,2642.8,0.75666]
[1739469150939,3.2078,2643.1,2642.7,4.12684656]
[1739469151145,3.2078,2643.1,2642.7,3.37017656]
[1739469151450,3.2078,2643.1,2642.7,4.12684656]
[1739469152341,3.2078,2643.1,2642.6,0.56657472]
[1739469152536,0.75665,2642.9,2642.6,0.56657472]
[1739469152740,3.2078,2643.1,2642.6,3.93675128]
[1739469153546,3.96438,2643.1,2642.6,4.69345128]
[1739469154045,3.2078,2643.1,2642.7,40.8]
[1739469154249,3.96437,2643.1,2642.7,41.55668]
[1739469154444,3.2078,2643.1,2642.8,0.75665]
[1739469154649,3.96439,2643.1,2642.7,41.55668]
[1739469154952,0.75661,2643.0,2642.7,40.8]
[1739469155453,0.75664,2642.9,2642.7,40.8]
[1739469156150,0.75662,2643.0,2642.7,40.8]
[1739469156453,3.2078,2643.1,2642.7,40.8]
[1739469156656,0.75663,2643.0,2642.7,40.8]
[1739469156949,0.75663,2643.0,2642.7,41.55668]
[1739469157145,0.75663,2643.0,2642.7,40.8]
[1739469157146,0.75662,2643.0,2642.7,40.8]
[1739469157651,0.75662,2643.0,2642.7,41.55667]
[1739469158448,0.75662,2643.0,2642.7,41.55668]
[1739469158853,3.2078,2643.1,2642.7,40.8]
[1739469159453,0.75663,2642.9,2642.7,40.8]
[1739469159655,0.75666,2642.8,2642.7,40.8]
[1739469159854,0.75668,2642.8,2642.6,0.56657472]
[1739469160055,0.75663,2642.9,2642.6,1.32328472]
[1739469160251,3.2078,2643.1,2642.7,40.8]
[1739469160459,0.75664,2642.9,2642.7,41.55668]
[1739469160651,0.75664,2642.9,2642.6,1.32328472]
[1739469160956,0.75666,2642.8,2642.6,1.32326472]
[1739469161154,3.2078,2643.1,2642.6,0.56657472]